bitfinex/quotes_BTCUSD_20250408
["timestamp","ask_amount","ask_price","bid_price","bid_amount"]
[1744120551697,0.262771,79917.0,79916.0,0.003]
[1744120551957,0.250259,79917.0,79916.0,0.003]
[1744120552159,0.262771,79917.0,79916.0,0.003]
[1744120552312,0.012513,79916.0,79915.0,0.1812]
[1744120552515,0.262775,79916.0,79915.0,0.1812]
[1744120552763,0.262808,79906.0,79905.0,0.0003364]
[1744120552965,0.72906664,79906.0,79905.0,0.0003364]
[1744120553844,0.250284,79910.0,79905.0,0.0003364]
[1744120554046,0.250259,79917.0,79908.0,0.012514]
[1744120554295,0.25027,79914.0,79908.0,0.012514]
[1744120554457,0.012514,79910.0,79905.0,0.0003364]
[1744120554670,0.262808,79906.0,79905.0,0.0003364]
[1744120554885,0.266808,79906.0,79905.0,0.0013364]
[1744120556035,0.602808,79906.0,79905.0,0.0003364]
[1744120556446,0.34,79906.0,79905.0,0.0003364]
[1744120556651,0.602808,79906.0,79905.0,0.0003364]
[1744120557347,0.604808,79906.0,79905.0,0.0003364]
[1744120557811,0.602808,79906.0,79905.0,0.0003364]
[1744120558013,0.354514,79906.0,79905.0,0.0003364]
[1744120558223,0.604808,79906.0,79905.0,0.0003364]
[1744120558455,0.002,79906.0,79905.0,0.2631474]
[1744120558674,0.252294,79906.0,79905.0,0.0003364]
[1744120558891,0.264808,79906.0,79905.0,0.0003364]
[1744120559374,0.262808,79906.0,79905.0,0.0003364]
[1744120559588,0.264808,79906.0,79905.0,0.0003364]
[1744120560064,0.262792,79912.0,79905.0,0.0003364]
[1744120560065,0.34,79913.0,79912.0,0.250275]
[1744120560321,0.34,79919.0,79913.0,0.25027]
[1744120560588,0.250223,79929.0,79922.0,0.012512]
[1744120560829,0.01251,79932.0,79925.0,0.012511]
[1744120561035,0.250234,79925.0,79922.0,0.00940915]
[1744120561188,0.250233,79926.0,79923.0,0.250237]
[1744120561393,0.250228,79927.0,79923.0,0.250237]
[1744120561591,0.262739,79927.0,79922.0,0.250243]
[1744120561806,0.012511,79924.0,79919.0,0.012512]
[1744120562018,0.250225,79928.0,79924.0,0.250235]
[1744120562216,0.00012507,79933.0,79927.0,0.012511]
[1744120562423,0.00012507,79933.0,79932.0,0.250212]
[1744120562772,0.00012507,79933.0,79932.0,0.262722]
[1744120563124,0.02330667,79933.0,79932.0,0.262722]
[1744120563557,0.00012507,79933.0,79932.0,0.262722]
[1744120564015,0.00012507,79933.0,79932.0,0.80338064]
[1744120564248,0.00212507,79933.0,79932.0,0.4144]
[1744120564715,0.02531109,79933.0,79932.0,0.677122]
[1744120564941,0.02331109,79933.0,79932.0,0.677122]
[1744120565164,0.02331109,79933.0,79932.0,0.80338064]
[1744120565601,0.00012507,79933.0,79932.0,0.80638064]
[1744120566319,7e-08,79933.0,79932.0,0.91146455]
[1744120566568,0.0001683,79956.0,79955.0,0.262647]
[1744120567036,0.0001683,79956.0,79955.0,0.57014564]
[1744120567483,0.0001683,79956.0,79955.0,0.98454564]
[1744120568616,0.0001683,79956.0,79955.0,0.98554564]
[1744120569234,0.0001683,79956.0,79955.0,1.00958136]
[1744120569599,0.0001683,79956.0,79955.0,0.99804051]
[1744120569794,0.0001683,79956.0,79955.0,0.74786051]
[1744120569987,0.0001683,79956.0,79955.0,0.73535351]
[1744120570194,0.0126743,79956.0,79955.0,0.004]
[1744120570374,0.3401683,79956.0,79952.0,0.012507]
[1744120570631,0.0001683,79956.0,79955.0,0.012507]
[1744120570860,0.0001683,79956.0,79955.0,0.14926652]
[1744120571079,0.0001683,79956.0,79955.0,0.16380737]
[1744120571297,0.0001683,79956.0,79955.0,0.16080716]
[1744120571973,0.0001683,79956.0,79955.0,0.1703769]
[1744120572413,0.0001683,79956.0,79955.0,0.16787623]
[1744120572620,0.0001683,79956.0,79955.0,0.17037695]
[1744120573082,0.250089,79972.0,79965.0,0.012505]
[1744120573360,0.250098,79969.0,79966.0,0.1812]
[1744120573593,0.352505,79967.0,79966.0,0.1812]
[1744120573815,0.262634,79959.0,79958.0,0.4144]
[1744120574060,0.602634,79959.0,79958.0,0.4144]
[1744120574983,0.26269,79942.0,79941.0,0.1812]
[1744120575206,0.602699,79939.0,79924.0,0.1812]
[1744120575435,0.72895764,79939.0,79924.0,0.1812]
[1744120575663,0.72895764,79939.0,79938.0,1.1e-07]
[1744120575939,0.72895764,79939.0,79901.0,0.4184]
[1744120575940,0.602808,79906.0,79901.0,0.004]
[1744120576168,0.34,79891.0,79890.0,0.0003364]
[1744120576397,0.34,79891.0,79864.0,0.012521]
[1744120576398,0.262913,79874.0,79858.0,0.012522]
[1744120576627,0.262913,79874.0,79857.0,0.000336]
[1744120576628,0.60292,79872.0,79857.0,0.000336]
[1744120576856,0.60292,79872.0,79871.0,0.00042232]
[1744120576857,0.72917864,79872.0,79871.0,0.00042232]
[1744120577114,0.48940046,79872.0,79871.0,0.00042232]
[1744120577331,0.37566182,79872.0,79871.0,0.00084012]
[1744120577564,0.34,79872.0,79871.0,0.00084012]
[1744120578252,0.34,79872.0,79871.0,0.01336012]
[1744120578527,0.35252,79872.0,79871.0,0.00084012]
[1744120578760,0.47877864,79872.0,79871.0,0.00084012]
[1744120578997,0.34,79872.0,79871.0,0.00084012]
[1744120579437,0.35252,79872.0,79871.0,0.00084012]
[1744120579856,0.47877864,79872.0,79871.0,1.2e-07]
[1744120580074,0.50179605,79872.0,79871.0,1.2e-07]
[1744120580281,0.602966,79858.0,79857.0,0.000336]
[1744120580488,0.75224205,79858.0,79857.0,0.00046107]
[1744120580731,0.93324205,79858.0,79857.0,0.00046107]
[1744120580960,0.34,79858.0,79857.0,0.26343007]
[1744120581201,0.34,79858.0,79857.0,0.00046107]
[1744120581425,0.65675569,79880.0,79870.0,0.01252]
[1744120581648,0.262966,79858.0,79857.0,0.00046107]
[1744120581869,0.72922464,79858.0,79857.0,0.00046107]
[1744120582096,0.4118,79875.0,79864.0,0.012521]
[1744120582360,0.352519,79874.0,79858.0,0.012522]
[1744120582594,0.352519,79874.0,79857.0,0.00046107]
[1744120582595,0.250392,79875.0,79868.0,0.01252]
[1744120582830,0.25041,79869.0,79861.0,0.012521]
[1744120583052,0.012518,79883.0,79871.0,0.250403]
[1744120583299,0.65675569,79890.0,79857.0,0.12671971]
[1744120583300,0.012518,79881.0,79865.0,0.012521]
[1744120583518,0.0483,79902.0,79857.0,0.12671971]
[1744120583519,0.012521,79862.0,79857.0,0.12671971]
[1744120583775,0.012521,79862.0,79857.0,0.00046107]
[1744120583776,0.602966,79858.0,79857.0,0.00046107]
[1744120583992,0.72922464,79858.0,79857.0,0.00046107]
[1744120584469,0.72922464,79858.0,79822.0,0.4144]
[1744120584470,0.590494,79842.0,79822.0,0.4144]
[1744120584698,0.34,79842.0,79841.0,0.00412509]
[1744120584933,0.603018,79842.0,79841.0,0.00412509]
[1744120585400,0.34,79842.0,79841.0,0.00412509]
[1744120585625,0.34,79842.0,79841.0,0.25462209]
[1744120585846,0.001,79842.0,79841.0,0.00412509]
[1744120586067,0.353524,79842.0,79841.0,0.00412509]
[1744120586334,0.352524,79842.0,79841.0,0.00412509]
[1744120586558,0.34,79842.0,79841.0,0.00412509]
[1744120586787,0.250493,79843.0,79841.0,0.00412509]
[1744120587020,0.012518,79884.0,79865.0,0.262942]
[1744120587239,0.012519,79877.0,79862.0,0.012521]
[1744120587461,0.01252,79871.0,79859.0,0.262962]
[1744120587696,0.250379,79879.0,79866.0,0.01252]
[1744120587918,0.250393,79875.0,79866.0,0.01252]
[1744120588151,0.250385,79877.0,79870.0,0.01252]
[1744120588405,0.001,79879.0,79878.0,0.250381]
[1744120588630,0.012519,79876.0,79870.0,0.4144]
[1744120588863,0.250403,79872.0,79870.0,0.4144]
[1744120589088,0.262919,79874.0,79870.0,0.4144]
[1744120589297,0.01252,79871.0,79870.0,0.4144]
[1744120589501,0.602936,79867.0,79866.0,0.00012509]
[1744120589724,0.72919464,79867.0,79866.0,9e-08]
[1744120591152,0.74373549,79867.0,79866.0,9e-08]
[1744120591385,0.263018,79842.0,79841.0,0.004]
[1744120591655,0.263018,79842.0,79841.0,0.00412523]
[1744120591851,0.603018,79842.0,79841.0,0.00412523]
[1744120593850,0.341,79842.0,79841.0,0.00412523]
[1744120594056,0.001,79842.0,79841.0,0.01664923]
[1744120594380,0.004,79842.0,79841.0,0.00412523]
[1744120594576,0.003,79842.0,79841.0,0.01664923]
[1744120595031,0.001,79842.0,79841.0,0.00412523]
[1744120595229,0.001,79842.0,79841.0,0.01664923]
[1744120595905,0.65675569,79880.0,79841.0,0.14541266]
[1744120596130,0.25041,79869.0,79864.0,0.012521]
[1744120596360,0.250414,79868.0,79863.0,0.250428]
[1744120596584,0.012521,79865.0,79856.0,0.25045]
[1744120596816,0.012521,79862.0,79850.0,0.012523]
[1744120597030,0.012521,79862.0,79857.0,0.012522]
[1744120597263,0.250442,79859.0,79856.0,0.250449]
[1744120597516,0.250433,79862.0,79856.0,0.25045]
[1744120597742,0.250433,79862.0,79858.0,0.250442]
[1744120597982,0.262958,79861.0,79857.0,0.250447]
[1744120598220,0.34,79855.0,79835.0,0.012525]
[1744120598478,0.263018,79842.0,79839.0,0.0003364]
[1744120598669,0.263016,79843.0,79839.0,0.0003364]
[1744120598953,0.352523,79847.0,79839.0,0.0128614]
[1744120599194,0.352523,79847.0,79846.0,0.012524]
[1744120599195,0.34,79847.0,79846.0,0.012524]
[1744120599413,0.590492,79843.0,79841.0,0.00412523]
[1744120599667,0.012524,79842.0,79841.0,0.00381743]
[1744120599898,0.590492,79843.0,79841.0,0.00381743]
[1744120600137,0.603016,79843.0,79841.0,0.00381743]
[1744120600373,0.012524,79842.0,79841.0,0.00381743]
[1744120600611,0.47878264,79842.0,79841.0,0.00381743]
[1744120601079,0.603041,79835.0,79834.0,8.3e-07]
[1744120601356,0.603071,79826.0,79802.0,0.4144]
[1744120601605,0.46625864,79826.0,79824.0,0.012527]
[1744120601853,0.34,79826.0,79825.0,0.01298799]
[1744120602089,0.34,79826.0,79825.0,0.26353599]
[1744120602554,0.015524,79842.0,79825.0,0.26353599]
[1744120602555,0.012525,79838.0,79833.0,0.012526]
[1744120602797,0.012526,79833.0,79825.0,0.41486099]
[1744120603044,0.34,79834.0,79833.0,0.012526]
[1744120603306,0.34,79834.0,79830.0,0.263051]
[1744120603561,0.34,79834.0,79832.0,0.250523]
[1744120603824,0.34,79837.0,79834.0,0.250519]
[1744120604049,0.34,79837.0,79830.0,0.012526]
[1744120604281,0.34,79837.0,79835.0,0.012525]
[1744120604477,0.25053,79831.0,79828.0,0.250538]
[1744120604708,0.263063,79829.0,79825.0,0.41486099]
[1744120604912,0.250536,79829.0,79826.0,0.250543]
[1744120605166,0.263043,79835.0,79829.0,0.263061]
[1744120605401,0.002,79837.0,79836.0,0.012525]
[1744120605601,0.002,79837.0,79836.0,0.263037]
[1744120605786,0.34,79836.0,79832.0,0.250522]
[1744120606062,0.250542,79827.0,79825.0,0.00046099]
[1744120606310,0.012527,79826.0,79825.0,0.00046099]
[1744120606547,0.34,79833.0,79829.0,0.012526]
[1744120606768,0.012526,79830.0,79826.0,0.250544]
[1744120606990,0.012526,79828.0,79825.0,0.00046099]
[1744120607221,0.03569812,79832.0,79825.0,0.00046099]
[1744120607481,0.012527,79826.0,79825.0,0.00046099]
[1744120607975,0.02317212,79826.0,79825.0,0.00046099]
[1744120608478,0.03569912,79826.0,79825.0,0.00046099]
[1744120608712,0.50195776,79826.0,79825.0,0.00046099]
[1744120609432,0.36617212,79826.0,79825.0,0.26353599]
[1744120610156,0.36917212,79826.0,79825.0,0.26353599]
[1744120610656,0.36317212,79826.0,79825.0,0.25100899]
[1744120610896,0.36617212,79826.0,79825.0,0.25100899]
[1744120611085,0.36817212,79826.0,79825.0,0.26353599]
[1744120611363,0.02817212,79826.0,79825.0,0.26353599]
[1744120612839,0.02817212,79826.0,79825.0,0.38979463]
[1744120613056,1.2e-07,79826.0,79825.0,0.38979463]
[1744120613303,1.2e-07,79826.0,79825.0,0.42870034]
[1744120613804,0.0012,79838.0,79837.0,0.263035]
[1744120614042,0.0012,79838.0,79837.0,0.60939935]
[1744120614249,0.012516,79893.0,79880.0,0.012518]
[1744120614454,0.262893,79880.0,79874.0,0.012519]
[1744120614666,0.25037,79882.0,79875.0,0.262908]
[1744120614881,0.25037,79882.0,79876.0,0.012519]
[1744120615089,0.25038,79879.0,79876.0,0.250387]
[1744120615298,0.250383,79878.0,79873.0,0.250395]
[1744120615525,0.262895,79880.0,79875.0,0.25039]
[1744120615739,0.26291,79875.0,79874.0,0.001]
[1744120616576,0.60291,79875.0,79874.0,0.001]
[1744120616812,0.012523,79847.0,79839.0,0.1812]
[1744120617020,0.012523,79850.0,79844.0,0.250487]
[1744120617021,0.250476,79848.0,79844.0,0.250487]
[1744120617234,0.34,79860.0,79855.0,0.012522]
[1744120617443,0.012518,79879.0,79870.0,0.01252]
[1744120617658,0.352519,79875.0,79870.0,0.01252]
[1744120617886,0.34,79872.0,79869.0,0.01252]
[1744120618093,0.34,79870.0,79868.0,0.262931]
[1744120618304,0.35252,79870.0,79864.0,0.012521]
[1744120618510,0.35252,79870.0,79855.0,0.193682]
[1744120618511,0.250427,79864.0,79855.0,0.193682]
[1744120618710,0.250436,79861.0,79856.0,0.012522]
[1744120618823,0.250432,79862.0,79859.0,0.250439]
[1744120619031,0.012521,79861.0,79857.0,0.250447]
[1744120619452,0.250448,79857.0,79855.0,0.18116]
[1744120619663,0.012523,79848.0,79840.0,0.012525]
[1744120619859,0.012523,79848.0,79845.0,0.250485]
[1744120620150,0.012522,79854.0,79846.0,0.263005]
[1744120620357,0.012521,79861.0,79852.0,0.012523]
[1744120620576,0.34,79858.0,79855.0,0.250453]
[1744120620786,0.250468,79851.0,79843.0,0.012524]
[1744120620935,0.263006,79846.0,79843.0,0.25049]
[1744120621141,0.012524,79841.0,79840.0,0.008]
[1744120621523,0.603038,79836.0,79835.0,0.00012499]
[1744120621725,0.74205668,79836.0,79835.0,9.9e-07]
[1744120621938,0.75659753,79836.0,79835.0,9.9e-07]
[1744120622142,0.75659753,79836.0,79811.0,0.004]
[1744120622143,0.603117,79812.0,79811.0,0.004]
[1744120622344,0.72937564,79812.0,79811.0,0.004]
[1744120622943,0.34,79812.0,79811.0,0.004]
[1744120623149,0.603117,79812.0,79811.0,0.004]
[1744120623350,0.72937564,79812.0,79811.0,0.004]
[1744120623807,0.34,79811.0,79809.0,6e-07]
[1744120624015,0.60316,79799.0,79798.0,1e-06]
[1744120624284,0.61771085,79796.0,79795.0,2e-07]
[1744120624493,0.74396949,79796.0,79795.0,0.00012549]
[1744120624936,0.76706017,79796.0,79795.0,0.00012549]
[1744120625175,0.75251932,79796.0,79795.0,0.00012549]
[1744120625461,0.36309068,79796.0,79795.0,0.01265749]
[1744120626249,0.02309068,79796.0,79795.0,0.01265749]
[1744120626879,0.35253,79804.0,79796.0,0.26317]
[1744120627097,0.263149,79803.0,79796.0,0.250639]
[1744120627296,0.263149,79803.0,79795.0,0.00012549]
[1744120627297,0.26317,79796.0,79795.0,0.00012549]
[1744120627505,0.250623,79801.0,79796.0,0.012531]
[1744120627713,0.34,79802.0,79797.0,0.263166]
[1744120627919,0.002,79812.0,79811.0,0.012529]
[1744120628119,0.002,79812.0,79805.0,0.01253]
[1744120628330,0.002,79812.0,79810.0,0.250595]
[1744120628537,0.250601,79808.0,79802.0,0.012531]
[1744120628739,0.34,79809.0,79804.0,0.01253]
[1744120628942,0.34,79809.0,79800.0,0.250624]
[1744120628943,0.590599,79809.0,79799.0,0.012531]
[1744120629119,0.352529,79809.0,79804.0,0.250612]
[1744120629344,0.34,79809.0,79804.0,0.263142]
[1744120629547,0.34,79810.0,79807.0,0.01253]
[1744120629773,0.01281131,79836.0,79824.0,0.012527]
[1744120629980,0.91978169,79840.0,79803.0,0.01253]
[1744120629981,0.250599,79809.0,79803.0,0.01253]
[1744120630187,0.01253,79804.0,79795.0,2e-07]
[1744120630391,0.352531,79796.0,79795.0,2e-07]
[1744120630809,0.47878964,79796.0,79795.0,2e-07]
[1744120631022,0.50189946,79796.0,79795.0,0.00012549]
[1744120632109,0.48936846,79796.0,79795.0,0.00012549]
[1744120632323,0.02310982,79796.0,79795.0,0.00012549]
[1744120632797,0.590638,79797.0,79795.0,0.00012549]
[1744120632798,0.34,79797.0,79795.0,0.00012549]
[1744120633213,0.34,79797.0,79795.0,0.25076549]
[1744120633423,0.250635,79797.0,79795.0,0.00012549]
[1744120633633,0.26317,79796.0,79795.0,0.00012549]
[1744120634379,0.256624,79801.0,79799.0,0.250628]
[1744120634380,0.006,79801.0,79799.0,0.250628]
[1744120634611,0.0475,79830.0,79795.0,0.00012549]
[1744120634612,0.019531,79796.0,79795.0,0.00112549]
[1744120634843,0.013,79796.0,79795.0,0.00112549]
[1744120635084,0.006,79796.0,79795.0,0.26329949]
[1744120635302,0.004,79796.0,79795.0,0.38955813]
[1744120635517,0.004,79796.0,79795.0,0.67769949]
[1744120635969,0.004,79796.0,79795.0,0.41452549]
[1744120636176,0.356531,79796.0,79795.0,0.41452549]
[1744120636818,0.004,79796.0,79795.0,0.41452549]
[1744120637029,0.39342864,79796.0,79795.0,0.00012549]
[1744120637240,0.40796949,79796.0,79795.0,0.00012549]
[1744120637448,0.012532,79792.0,79791.0,4.9e-07]
[1744120637653,0.72944164,79792.0,79791.0,4.9e-07]
[1744120637893,0.74398249,79792.0,79791.0,0.00041847]
[1744120638131,0.77855712,79792.0,79791.0,0.00041847]
[1744120639497,0.50083327,79792.0,79791.0,0.00041847]
[1744120639700,0.51336527,79792.0,79791.0,0.00041847]
[1744120640110,0.5068414,79792.0,79791.0,0.00041847]
[1744120640527,0.61370176,79792.0,79791.0,0.00041847]
[1744120640735,0.603183,79792.0,79791.0,0.00041847]
[1744120640945,0.620183,79792.0,79791.0,0.00241847]
[1744120641162,0.620183,79792.0,79791.0,0.00141847]
[1744120641163,0.349,79792.0,79791.0,0.00141847]
[1744120641336,0.263183,79792.0,79791.0,0.00041847]
[1744120641540,0.019532,79792.0,79791.0,0.00141847]
[1744120641743,0.40044164,79792.0,79791.0,0.00141847]
[1744120642148,0.011,79792.0,79791.0,0.00141847]
[1744120642653,0.14979064,79792.0,79791.0,0.00141847]
[1744120642829,0.2632,79787.0,79786.0,0.0003364]
[1744120643203,0.40399949,79787.0,79786.0,0.0003364]
[1744120643438,0.42701359,79787.0,79786.0,0.0003364]
[1744120643769,0.38945864,79787.0,79786.0,0.0003364]
[1744120643971,0.01541641,79792.0,79791.0,0.250654]
[1744120644198,0.250665,79788.0,79786.0,0.0003364]
[1744120644395,0.263197,79788.0,79786.0,0.0013364]
[1744120644657,0.008,79787.0,79786.0,0.0138694]
[1744120644899,0.2782,79787.0,79786.0,0.0013364]
[1744120645350,0.015,79787.0,79786.0,0.0013364]
[1744120645554,0.027533,79787.0,79786.0,0.0013364]
[1744120645767,0.15379164,79787.0,79786.0,0.0013364]
[1744120646181,0.15479164,79787.0,79786.0,0.0003364]
[1744120646590,0.17788914,79787.0,79786.0,0.0003364]
[1744120646792,0.16188914,79787.0,79786.0,0.0003364]
[1744120646997,0.16888914,79787.0,79786.0,0.0003364]
[1744120647230,0.012533,79783.0,79782.0,4e-07]
[1744120647449,0.61776685,79779.0,79778.0,8e-07]
[1744120647655,0.61776685,79779.0,79763.0,0.0001685]
[1744120647656,0.603275,79764.0,79763.0,0.0001685]
[1744120647863,0.76717199,79764.0,79763.0,0.0001685]
[1744120648277,0.34,79761.0,79759.0,1e-07]
[1744120648495,0.34,79761.0,79719.0,0.012544]
[1744120648496,0.603315,79752.0,79721.0,0.016543]
[1744120648708,0.47879664,79752.0,79737.0,0.012541]
[1744120648910,0.50189414,79752.0,79739.0,0.01254]
[1744120649113,0.51413398,79752.0,79751.0,0.00404167]
[1744120649740,0.51413398,79752.0,79751.0,0.01658067]
[1744120649741,0.0230975,79752.0,79751.0,0.01658067]
[1744120649967,0.0356355,79752.0,79751.0,0.00404167]
[1744120650177,0.16889414,79752.0,79751.0,0.00404167]
[1744120650385,0.0496355,79752.0,79751.0,0.00404167]
[1744120650815,0.0230975,79752.0,79751.0,0.00404167]
[1744120651053,0.0230975,79752.0,79751.0,0.25482167]
[1744120651302,0.004,79752.0,79751.0,0.00404167]
[1744120651525,0.004,79752.0,79751.0,0.01658067]
[1744120651733,5e-07,79755.0,79754.0,0.263309]
[1744120651939,0.263242,79775.0,79769.0,0.012536]
[1744120652183,0.012532,79795.0,79779.0,0.012534]
[1744120652386,0.012532,79795.0,79766.0,0.00250725]
[1744120652387,0.263175,79795.0,79788.0,0.012533]
[1744120652590,0.250664,79788.0,79783.0,0.250677]
[1744120652800,0.250664,79788.0,79784.0,0.250676]
[1744120652982,0.01253,79805.0,79799.0,0.250627]
[1744120653212,0.01253,79805.0,79793.0,0.012532]
[1744120653213,0.012531,79798.0,79793.0,0.012532]
[1744120653422,0.25064,79796.0,79793.0,0.250646]
[1744120653594,0.263197,79788.0,79787.0,0.18128]
[1744120653829,0.002,79790.0,79788.0,0.250663]
[1744120654044,0.002,79790.0,79789.0,0.012533]
[1744120654260,0.250656,79791.0,79787.0,0.431946]
[1744120654437,0.263188,79791.0,79787.0,0.18128]
[1744120654641,0.250656,79791.0,79787.0,0.18128]
[1744120654849,0.012532,79794.0,79788.0,0.012533]
[1744120655052,0.002,79798.0,79795.0,0.26317]
[1744120655254,0.002,79798.0,79796.0,0.250638]
[1744120655457,0.012531,79796.0,79787.0,0.18128]
[1744120655659,0.263183,79792.0,79787.0,0.18128]
[1744120655868,0.34,79800.0,79789.0,0.012533]
[1744120656101,0.250642,79795.0,79789.0,0.012533]
[1744120656321,0.005,79798.0,79795.0,0.012532]
[1744120656512,0.005,79798.0,79792.0,0.012532]
[1744120656719,0.345,79798.0,79796.0,0.250636]
[1744120656931,0.005,79798.0,79797.0,0.012531]
[1744120657135,0.250639,79796.0,79786.0,0.012533]
[1744120657305,0.012532,79792.0,79787.0,0.193813]
[1744120657505,0.012532,79794.0,79790.0,0.250657]
[1744120657710,0.263181,79793.0,79788.0,0.012533]
[1744120657926,0.250646,79794.0,79791.0,0.250654]
[1744120658095,0.34,79800.0,79799.0,0.250629]
[1744120658486,0.34,79800.0,79794.0,0.012532]
[1744120658487,0.002,79795.0,79791.0,0.012532]
[1744120658669,0.34,79800.0,79799.0,0.250629]
[1744120658840,0.34,79800.0,79798.0,0.250632]
[1744120659047,0.00041641,79805.0,79795.0,0.012532]
[1744120659244,0.34,79802.0,79796.0,0.012531]
[1744120659445,0.00041641,79805.0,79796.0,0.012531]
[1744120659446,0.00041641,79805.0,79803.0,0.01253]
[1744120659649,0.00041641,79805.0,79804.0,0.57064264]
[1744120660102,0.00041641,79805.0,79804.0,0.19065376]
[1744120660270,0.01294641,79805.0,79804.0,0.18124]
[1744120660634,0.263149,79803.0,79797.0,0.250632]
[1744120660814,0.250631,79799.0,79794.0,0.012532]
[1744120660991,0.012531,79800.0,79792.0,0.18124]
[1744120661196,0.012531,79797.0,79792.0,0.263182]
[1744120661401,0.012531,79801.0,79793.0,0.193772]
[1744120661587,0.012532,79794.0,79793.0,0.18124]
[1744120661763,0.263171,79796.0,79793.0,0.18124]
[1744120661963,0.263161,79799.0,79793.0,0.18124]
[1744120662171,0.012531,79801.0,79795.0,0.263173]
[1744120662398,0.00341641,79805.0,79804.0,0.263144]
[1744120662837,0.00041641,79805.0,79804.0,0.263144]
[1744120663707,0.00041641,79805.0,79793.0,0.193772]
[1744120663708,0.26355841,79805.0,79793.0,0.193772]
[1744120663931,0.00541641,79805.0,79803.0,0.250616]
[1744120664139,0.00541641,79805.0,79803.0,0.263145]
[1744120664619,0.250629,79799.0,79794.0,0.263174]
[1744120664834,0.012531,79800.0,79795.0,0.012532]
[1744120665038,0.012531,79799.0,79793.0,0.012532]
[1744120665251,0.01253,79804.0,79796.0,0.012531]
[1744120665454,0.00041641,79805.0,79796.0,0.012531]
[1744120665455,0.00241641,79805.0,79804.0,0.263144]
[1744120665629,0.00041641,79805.0,79804.0,0.263144]
[1744120665834,0.00041641,79805.0,79800.0,0.012531]
[1744120666048,0.00041641,79805.0,79803.0,0.250616]
[1744120666249,0.263154,79801.0,79796.0,0.003]
[1744120666500,0.250636,79797.0,79796.0,0.002]
[1744120666663,0.012531,79801.0,79796.0,0.002]
[1744120666830,0.250635,79797.0,79796.0,0.002]
[1744120667195,0.72942464,79797.0,79796.0,0.002]
[1744120667865,0.603177,79794.0,79793.0,0.001]
[1744120668091,0.72943564,79794.0,79793.0,0.001]
[1744120668318,0.46625864,79794.0,79793.0,0.001]
[1744120668802,0.012532,79790.0,79785.0,0.012533]
[1744120669059,0.012532,79792.0,79787.0,0.250667]
[1744120669268,0.250649,79793.0,79790.0,0.250657]
[1744120669269,0.46625864,79791.0,79790.0,0.250657]
[1744120669494,0.46625864,79791.0,79781.0,0.250683]
[1744120669701,0.012533,79787.0,79780.0,0.250688]
[1744120669938,0.012532,79790.0,79780.0,0.263222]
[1744120670194,0.012533,79787.0,79779.0,0.012534]
[1744120670405,0.012533,79787.0,79776.0,0.012535]
[1744120670406,0.250698,79778.0,79774.0,0.00931299]
[1744120670652,0.250692,79781.0,79777.0,0.250698]
[1744120670867,0.012533,79787.0,79778.0,0.263229]
[1744120670868,0.012533,79784.0,79778.0,0.263229]
[1744120671091,0.250692,79779.0,79776.0,0.250699]
[1744120671299,0.012534,79780.0,79775.0,0.250705]
[1744120671535,0.012534,79780.0,79774.0,0.012535]
[1744120671764,0.250701,79776.0,79774.0,0.002]
[1744120671994,1.6e-07,79780.0,79779.0,0.263226]
[1744120672235,1.6e-07,79780.0,79779.0,0.39148464]
[1744120672460,1.6e-07,79780.0,79779.0,0.57272464]
[1744120672927,1.6e-07,79780.0,79779.0,0.444466]
[1744120673424,0.65675569,79810.0,79809.0,0.263127]
[1744120673661,0.0003372,79828.0,79815.0,0.263107]
[1744120674112,0.0003372,79828.0,79815.0,0.38936564]
[1744120674314,6e-07,79828.0,79827.0,0.263068]
[1744120674535,6e-07,79828.0,79827.0,0.57052664]
[1744120674740,6e-07,79828.0,79827.0,1.97784664]
[1744120675248,0.0001685,79866.0,79838.0,0.263032]
[1744120675249,8e-07,79839.0,79838.0,0.263032]
[1744120675453,8e-07,79839.0,79838.0,0.38929064]
[1744120675655,2.2e-07,79843.0,79842.0,0.263018]
[1744120675855,2.2e-07,79843.0,79842.0,0.38927664]
[1744120676828,1e-07,79866.0,79865.0,0.262943]
[1744120677056,1e-07,79866.0,79865.0,0.98480164]
[1744120677267,4.7e-07,79866.0,79865.0,0.98480164]
[1744120678323,0.00100047,79866.0,79865.0,0.98980164]
[1744120678531,0.00100047,79866.0,79865.0,0.613121]
[1744120678847,0.00100047,79866.0,79865.0,0.73937964]
[1744120679273,4.7e-07,79866.0,79865.0,0.73437964]
[1744120679387,4.7e-07,79866.0,79865.0,0.74381894]
[1744120679592,4.7e-07,79866.0,79865.0,0.75081894]
[1744120680060,4.7e-07,79866.0,79865.0,0.74681894]
[1744120680238,0.00100047,79866.0,79865.0,0.75381894]
[1744120680472,0.00100047,79866.0,79865.0,0.4244]
[1744120680885,0.00100047,79866.0,79865.0,0.436921]
[1744120681369,0.00100047,79866.0,79865.0,0.56976264]
[1744120681574,0.00100047,79866.0,79865.0,0.56776264]
[1744120681945,0.00100047,79866.0,79865.0,0.443504]
[1744120682122,0.00100047,79866.0,79865.0,0.448504]
[1744120682308,4.7e-07,79866.0,79865.0,0.441504]
[1744120682509,4.7e-07,79866.0,79865.0,0.56776264]
[1744120682768,4.7e-07,79866.0,79865.0,0.57376264]
[1744120683008,4.7e-07,79866.0,79865.0,0.63110349]
[1744120683246,0.0003366,79885.0,79868.0,0.262933]
[1744120683473,0.00412514,79869.0,79868.0,0.38919164]
[1744120685255,9.4e-07,79876.0,79875.0,0.26291]
[1744120685444,7.4e-07,79892.0,79884.0,0.262881]
[1744120685806,7.4e-07,79892.0,79881.0,0.262888]
[1744120685807,2.4e-07,79899.0,79898.0,0.012515]
[1744120686025,2.4e-07,79899.0,79898.0,1.54791623]
[1744120686241,0.00012535,79899.0,79898.0,1.53289864]
[1744120686396,0.00012535,79899.0,79898.0,1.600235]
[1744120686960,0.00012535,79899.0,79898.0,1.72649364]
[1744120687416,0.004,79929.0,79928.0,0.012511]
[1744120687417,4.3e-07,79929.0,79928.0,0.012511]
[1744120687638,4.3e-07,79929.0,79928.0,2.02825616]